bitfinex/quotes_BTCUSD_20241111
["timestamp","ask_amount","ask_price","bid_price","bid_amount"]
[1731290660513,0.005,81298.0,81295.0,0.196812]
[1731290660514,0.005,81297.0,81295.0,0.196812]
[1731290660869,0.005,81297.0,81296.0,0.098405]
[1731290661407,0.01,81296.0,81283.0,0.1]
[1731290661609,0.01,81296.0,81216.0,0.20991733]
[1731290661610,0.01,81296.0,81295.0,0.098405]
[1731290661932,0.005,81296.0,81295.0,0.098405]
[1731290662128,0.005,81296.0,81292.0,0.196819]
[1731290662129,0.005,81296.0,81293.0,0.18461311]
[1731290662335,0.005,81304.0,81303.0,0.098397]
[1731290662568,0.01,81304.0,81303.0,0.098397]
[1731290663359,1.5,81307.0,81303.0,0.18461311]
[1731290663633,0.07490338,81316.0,81307.0,0.1]
[1731290663634,0.00168,81316.0,81307.0,0.1]
[1731290663842,0.00168,81316.0,81304.0,0.10245996]
[1731290663843,0.00168,81316.0,81315.0,0.098382]
[1731290664067,0.00168,81316.0,81315.0,0.198382]
[1731290665328,0.00168,81316.0,81315.0,0.098382]
[1731290665761,0.00491809,81320.0,81319.0,0.098377]
[1731290666133,0.00491809,81320.0,81303.0,0.0103112]
[1731290666134,0.005,81315.0,81314.0,0.098384]
[1731290666362,0.00491809,81318.0,81317.0,0.09838]
[1731290666546,0.1308603,81319.0,81318.0,0.098379]
[1731290666745,0.1308603,81319.0,81316.0,0.196763]
[1731290666746,0.00991809,81320.0,81319.0,0.098377]
[1731290666943,0.00991809,81320.0,81317.0,0.19676]
[1731290667143,0.00991809,81320.0,81319.0,0.098377]
[1731290667487,0.0648777,81320.0,81319.0,0.098377]
[1731290667628,0.005,81320.0,81319.0,0.098377]
[1731290668064,0.00991809,81320.0,81319.0,0.098377]
[1731290668426,0.005,81320.0,81315.0,0.00245928]
[1731290668604,0.005,81320.0,81319.0,0.098377]
[1731290668812,0.005,81320.0,81315.0,0.00245928]
[1731290668965,0.005,81320.0,81317.0,0.19676]
[1731290669186,0.12865339,81320.0,81319.0,0.098377]
[1731290669393,0.08323269,81321.0,81320.0,0.098376]
[1731290669582,0.00991809,81321.0,81320.0,0.098376]
[1731290670759,0.005,81320.0,81318.0,0.196758]
[1731290671058,0.01491809,81320.0,81319.0,0.098377]
[1731290671289,0.1408603,81320.0,81319.0,0.098377]
[1731290671525,0.00991809,81303.0,81302.0,0.098397]
[1731290671739,0.00991809,81303.0,81302.0,0.10737866]
[1731290671974,0.00991809,81303.0,81297.0,0.098403]
[1731290671975,0.1408603,81303.0,81297.0,0.098403]
[1731290672192,0.1408603,81302.0,81301.0,0.28301211]
[1731290672403,0.005,81300.0,81295.0,0.098407]
[1731290672532,0.00491809,81296.0,81295.0,0.098407]
[1731290672733,0.05504441,81297.0,81295.0,0.098407]
[1731290672944,0.15290471,81297.0,81295.0,0.098406]
[1731290673152,0.19933476,81297.0,81296.0,0.098405]
[1731290673360,0.12594221,81297.0,81286.0,0.196834]
[1731290673606,0.07341395,81295.0,81294.0,0.098407]
[1731290674229,0.12385888,81295.0,81294.0,0.098408]
[1731290674430,0.12594221,81295.0,81286.0,0.196834]
[1731290674643,0.12594221,81294.0,81291.0,0.098411]
[1731290674839,0.12594221,81294.0,81293.0,0.099249]
[1731290674840,0.21778126,81294.0,81293.0,0.099249]
[1731290675042,0.22935021,81294.0,81293.0,0.00084]
[1731290675751,0.098427,81279.0,81249.0,0.18461311]
[1731290676000,0.005,81274.0,81262.0,0.196892]
[1731290676197,1.78522515,81274.0,81262.0,0.196892]
[1731290676424,1.71174221,81274.0,81267.0,0.09844]
[1731290676637,0.03673804,81268.0,81265.0,0.098442]
[1731290676874,0.16268043,81267.0,81265.0,0.098442]
[1731290677089,0.16268043,81267.0,81262.0,0.196892]
[1731290677307,0.04173822,81266.0,81263.0,0.098445]
[1731290677526,0.005,81264.0,81263.0,0.098445]
[1731290678183,0.13094221,81264.0,81261.0,0.098447]
[1731290678404,0.12594221,81263.0,81259.0,0.09845]
[1731290678618,0.005,81261.0,81260.0,0.00899654]
[1731290678821,0.005,81254.0,81251.0,0.09846]
[1731290679053,0.005,81253.0,81251.0,0.09846]
[1731290679255,0.13094221,81252.0,81251.0,0.09846]
[1731290679688,1.63094221,81252.0,81251.0,0.09846]
[1731290679920,1.63094221,81252.0,81244.0,0.196936]
[1731290680130,0.005,81243.0,81240.0,0.000841]
[1731290680346,0.17446,81251.0,81240.0,0.000841]
[1731290680347,0.005,81241.0,81240.0,0.000841]
[1731290680558,0.005,81241.0,81240.0,0.296258]
[1731290681407,0.076,81251.0,81240.0,0.296258]
[1731290681408,0.0366961,81257.0,81251.0,0.09846]
[1731290681667,0.005,81257.0,81256.0,0.098454]
[1731290681869,0.13094221,81257.0,81256.0,0.098454]
[1731290682728,0.03667965,81268.0,81256.0,0.20991733]
[1731290682959,0.03667965,81277.0,81262.0,0.1]
[1731290683198,0.18461311,81278.0,81277.0,0.098428]
[1731290683390,0.005,81280.0,81279.0,0.098426]
[1731290683610,0.005,81272.0,81256.0,0.00084]
[1731290683827,0.005,81272.0,81268.0,0.098439]
[1731290683828,0.12594221,81271.0,81268.0,0.098439]
[1731290684031,0.005,81268.0,81256.0,0.00084]
[1731290684248,0.005,81262.0,81256.0,0.00084]
[1731290684465,0.02409556,81268.0,81239.0,0.18461311]
[1731290684466,0.005,81241.0,81239.0,0.18461311]
[1731290685120,1.505,81241.0,81229.0,0.196973]
[1731290685337,1.63094221,81241.0,81237.0,0.098477]
[1731290685587,1.63094221,81241.0,81240.0,0.099314]
[1731290686016,1.63094221,81241.0,81240.0,0.000841]
[1731290687516,1.72941421,81241.0,81240.0,0.000841]
[1731290687937,1.85535642,81241.0,81240.0,0.000841]
[1731290688373,1.72941421,81241.0,81240.0,0.000841]
[1731290688764,1.63094221,81241.0,81240.0,0.000841]
[1731290688973,0.13094221,81241.0,81240.0,0.000841]
[1731290689514,0.13094221,81241.0,81240.0,0.099314]
[1731290689725,0.12594221,81241.0,81240.0,0.099314]
[1731290690088,0.0869,81249.0,81248.0,0.098463]
[1731290690300,0.005,81249.0,81248.0,0.098463]
[1731290690490,0.005,81249.0,81240.0,0.197788]
[1731290690491,0.005,81257.0,81256.0,0.098454]
[1731290690617,0.13094221,81257.0,81256.0,0.098454]
[1731290691437,0.005,81251.0,81240.0,0.000841]
[1731290691612,0.005,81251.0,81250.0,0.098461]
[1731290691968,0.005,81249.0,81248.0,0.295389]
[1731290692360,0.005,81249.0,81248.0,0.098463]
[1731290692743,0.12594221,81256.0,81251.0,0.09846]
[1731290692744,0.005,81252.0,81251.0,0.09846]
[1731290692948,0.12594221,81256.0,81240.0,0.000841]
[1731290692949,0.005,81253.0,81240.0,0.000841]
[1731290693369,0.13094221,81256.0,81252.0,0.098459]
[1731290693559,0.005,81253.0,81252.0,0.098459]
[1731290693972,0.12594221,81256.0,81250.0,0.196921]
[1731290693973,0.13094221,81256.0,81255.0,0.098455]
[1731290694426,0.12594221,81256.0,81255.0,0.098455]
[1731290694772,0.005,81249.0,81247.0,0.19693]
[1731290694983,0.005,81253.0,81252.0,0.098459]
[1731290696914,0.12762421,81256.0,81248.0,0.196925]
[1731290696915,0.13262421,81256.0,81255.0,0.098455]
[1731290699546,0.12762421,81256.0,81255.0,0.098455]
[1731290699742,0.13262421,81256.0,81255.0,0.098455]
[1731290700930,0.13262421,81256.0,81247.0,0.098465]
[1731290700931,0.005,81248.0,81247.0,0.098465]
[1731290701133,0.005,81248.0,81240.0,0.000841]
[1731290701134,0.005,81242.0,81240.0,0.000841]
[1731290701358,0.001682,81256.0,81240.0,0.000841]
[1731290701359,0.005,81241.0,81240.0,0.000841]
[1731290701577,0.005,81241.0,81240.0,0.099314]
[1731290701784,1.505,81241.0,81240.0,0.099314]
[1731290702455,1.505,81241.0,81240.0,0.000841]
[1731290702661,1.75688442,81241.0,81240.0,0.000841]
[1731290702867,0.005,81227.0,81218.0,0.18461311]
[1731290703082,0.005,81225.0,81224.0,0.099885]
[1731290703286,0.13094221,81225.0,81224.0,0.099885]
[1731290703796,0.005,81225.0,81224.0,0.099885]
[1731290704148,0.18461311,81239.0,81229.0,0.098486]
[1731290704149,0.005,81230.0,81229.0,0.098486]
[1731290704369,0.005,81225.0,81224.0,0.099885]
[1731290704518,0.13094221,81225.0,81224.0,0.099885]
[1731290705162,0.13094221,81225.0,81224.0,0.001392]
[1731290705363,1.63094221,81225.0,81224.0,0.001392]
[1731290706243,1.70604221,81225.0,81224.0,0.001392]
[1731290706681,1.70604221,81225.0,81213.0,0.038]
[1731290706682,0.103505,81214.0,81213.0,0.038]
[1731290706838,0.13094221,81214.0,81213.0,0.038]
[1731290707310,0.22944721,81214.0,81213.0,0.038]
[1731290707624,0.23444721,81214.0,81213.0,0.038]
[1731290708222,0.01,81207.0,81184.0,0.03599618]
[1731290708365,0.01,81207.0,81181.0,0.05483527]
[1731290708366,0.005,81186.0,81185.0,0.18461311]
[1731290708602,0.13094221,81186.0,81185.0,0.18461311]
[1731290708807,1.63094221,81186.0,81185.0,0.18461311]
[1731290709133,1.63094221,81186.0,81181.0,0.000841]
[1731290709134,0.005,81184.0,81183.0,0.098542]
[1731290709327,1.5,81186.0,81185.0,0.09854]
[1731290709502,0.23231311,81205.0,81181.0,0.000841]
[1731290709503,0.005,81197.0,81181.0,0.000841]
[1731290709696,0.18461311,81196.0,81195.0,0.098528]
[1731290709892,0.18961311,81196.0,81195.0,0.098528]
[1731290710120,0.005,81189.0,81181.0,0.000841]
[1731290710319,0.005,81184.0,81181.0,0.000841]
[1731290710536,0.005,81184.0,81183.0,0.098542]
[1731290711256,0.005,81195.0,81182.0,0.197086]
[1731290711467,0.005,81189.0,81188.0,0.098536]
[1731290711674,0.005,81191.0,81190.0,0.098534]
[1731290712552,0.0807,81211.0,81207.0,0.098513]
[1731290712775,0.18461311,81207.0,81206.0,0.098514]
[1731290712973,0.005,81207.0,81206.0,0.098514]
[1731290713770,0.005,81207.0,81204.0,0.197033]
[1731290713771,0.005,81208.0,81204.0,0.197033]
[1731290713966,0.005,81208.0,81205.0,0.197032]
[1731290714191,0.005,81208.0,81207.0,0.098513]
[1731290714425,0.005,81208.0,81204.0,0.197033]
[1731290714732,0.0777,81222.0,81189.0,0.197071]
[1731290714733,0.10325465,81207.0,81189.0,0.197071]
[1731290714892,0.10325465,81207.0,81187.0,0.1]
[1731290714893,0.0647994,81207.0,81198.0,0.197049]
[1731290715062,0.0647994,81207.0,81198.0,0.295573]
[1731290715063,0.005,81204.0,81198.0,0.295573]
[1731290715258,0.005,81204.0,81203.0,0.098517]
[1731290715409,0.005,81204.0,81197.0,0.19705]
[1731290715618,0.005,81204.0,81203.0,0.098518]
[1731290716794,0.005,81204.0,81196.0,0.098526]
[1731290716795,0.005,81198.0,81196.0,0.098526]
[1731290717032,0.12594221,81197.0,81196.0,0.098526]
[1731290717382,0.13094221,81197.0,81196.0,0.098526]
[1731290718314,0.13094221,81197.0,81188.0,0.197071]
[1731290718315,0.005,81195.0,81188.0,0.197071]
[1731290718522,0.005,81191.0,81190.0,0.098534]
[1731290718722,0.12594221,81194.0,81188.0,0.098536]
[1731290718723,0.005,81189.0,81188.0,0.098536]
[1731290718953,0.005,81189.0,81186.0,0.197078]
[1731290719318,0.005,81189.0,81175.0,0.18461311]
[1731290719319,0.005,81185.0,81183.0,0.098542]
[1731290719521,0.005,81182.0,81180.0,0.098546]
[1731290719716,0.005,81182.0,81175.0,0.18461311]
[1731290719717,0.005,81182.0,81181.0,0.099386]
[1731290720100,0.005,81182.0,81181.0,0.000841]
[1731290720101,0.13094221,81182.0,81181.0,0.000841]
[1731290720346,0.13094221,81182.0,81174.0,0.001392]
[1731290720347,0.31458621,81182.0,81174.0,0.001392]
[1731290720516,0.005,81175.0,81174.0,0.001392]
[1731290720722,0.13094221,81175.0,81174.0,0.001392]
[1731290720925,0.13594221,81175.0,81174.0,0.001392]
[1731290721140,0.23449421,81175.0,81174.0,0.001392]
[1731290721331,1.73449421,81175.0,81174.0,0.001392]
[1731290721620,0.005,81160.0,81159.0,0.09857]
[1731290722432,0.13094221,81160.0,81158.0,0.001394]
[1731290722692,1.697105,81175.0,81158.0,0.001394]
[1731290722693,0.005,81159.0,81158.0,0.001394]
[1731290723801,0.13094221,81159.0,81158.0,0.001394]
[1731290723991,0.21834221,81159.0,81158.0,0.001394]
[1731290724214,0.31691321,81159.0,81158.0,0.001394]
[1731290724749,0.21334221,81159.0,81158.0,0.001394]
[1731290725121,1.63094221,81159.0,81158.0,0.099967]
[1731290725523,0.13094221,81159.0,81158.0,0.099967]
[1731290727397,0.12594221,81159.0,81158.0,0.099967]
[1731290727606,0.0763,81170.0,81158.0,0.198538]
[1731290727607,0.005,81165.0,81158.0,0.198538]
[1731290727817,0.13094221,81164.0,81163.0,0.098567]
[1731290728032,0.005,81161.0,81158.0,0.001394]
[1731290728233,0.18461311,81169.0,81158.0,0.001394]
[1731290728234,0.31431321,81159.0,81158.0,0.001394]
[1731290728427,0.01,81152.0,81151.0,0.0143827]
[1731290728631,0.22952221,81152.0,81151.0,0.0143827]
[1731290728845,0.13094221,81152.0,81150.0,0.0143827]
[1731290729020,0.005,81143.0,81142.0,0.099986]
[1731290729194,0.13094221,81143.0,81142.0,0.099986]
[1731290730263,0.12594221,81143.0,81142.0,0.099986]
[1731290730464,0.13094221,81143.0,81142.0,0.099986]
[1731290730620,1.63094221,81143.0,81142.0,0.099986]
[1731290730815,0.13094221,81143.0,81142.0,0.099986]
[1731290731093,0.02018448,81161.0,81142.0,0.099986]
[1731290731094,0.005,81157.0,81145.0,0.197177]
[1731290731328,0.005,81152.0,81151.0,0.295743]
[1731290731648,0.00928225,81152.0,81151.0,0.295743]
[1731290731850,0.005,81152.0,81151.0,0.295743]
[1731290734769,1.515,81165.0,81142.0,0.198577]
[1731290734770,0.005,81159.0,81153.0,0.197158]
[1731290734999,0.00471097,81158.0,81157.0,0.098574]
[1731290735352,0.00471097,81158.0,81152.0,0.19716]
[1731290735353,0.005,81161.0,81160.0,0.09857]
[1731290735552,0.005,81163.0,81162.0,0.098568]
[1731290735757,0.00424147,81163.0,81150.0,0.10246426]
[1731290735933,0.005,81163.0,81150.0,0.1]
[1731290736135,0.0794,81177.0,81150.0,0.1]
[1731290736136,0.005,81167.0,81150.0,0.11058143]
[1731290736341,0.005,81167.0,81166.0,0.098563]
[1731290737722,0.005,81169.0,81168.0,0.098561]
[1731290737934,0.005,81169.0,81165.0,0.394258]
[1731290737935,0.005,81179.0,81165.0,0.197129]
[1731290738191,0.18461311,81184.0,81181.0,0.098545]
[1731290738367,0.18461311,81184.0,81183.0,0.098542]
[1731290738538,0.005,81182.0,81181.0,0.295632]
[1731290738942,0.005,81182.0,81181.0,0.30465214]
[1731290740199,0.005,81182.0,81181.0,0.10756414]
[1731290740782,1.505,81182.0,81181.0,0.10756414]
[1731290741198,1.50924841,81182.0,81181.0,0.10756414]
[1731290742194,0.00424841,81182.0,81181.0,0.10756414]
[1731290742644,0.005,81187.0,81186.0,0.098539]
[1731290742853,0.005,81187.0,81186.0,0.10755914]
[1731290743203,0.005,81187.0,81186.0,0.00902014]
[1731290743204,0.13594221,81187.0,81186.0,0.00902014]
[1731290743416,0.005,81167.0,81166.0,0.18461311]
[1731290743636,0.005,81167.0,81166.0,0.28317611]
[1731290743856,0.005,81167.0,81155.0,0.18461311]
[1731290743857,0.13094221,81167.0,81156.0,0.295726]
[1731290744081,0.005,81159.0,81158.0,0.098573]
[1731290744294,1.505,81159.0,81158.0,0.098573]
[1731290744723,1.50925766,81159.0,81158.0,0.098573]
[1731290745158,1.50425766,81159.0,81158.0,0.098573]
[1731290745436,1.63519987,81159.0,81152.0,0.03587273]
[1731290745606,1.63519987,81159.0,81149.0,0.2509761]
[1731290745607,0.005,81156.0,81155.0,0.098576]
[1731290745822,0.005,81156.0,81148.0,0.18461311]
[1731290745823,0.005,81156.0,81150.0,0.197165]
[1731290746014,0.00924301,81156.0,81155.0,0.098576]
[1731290746934,0.00924301,81156.0,81147.0,0.03600086]
[1731290746935,0.005,81151.0,81147.0,0.03600086]
[1731290747167,0.005,81151.0,81145.0,0.05400129]
[1731290747168,0.12594221,81150.0,81146.0,0.03600086]
[1731290747395,0.12594221,81150.0,81144.0,0.05400129]
[1731290747396,0.005,81146.0,81144.0,0.05400129]
[1731290747616,0.005,81146.0,81143.0,0.03687815]
[1731290747617,0.005,81144.0,81143.0,0.03687815]
[1731290747836,0.005,81144.0,81143.0,0.000843]
[1731290747837,0.13094221,81144.0,81143.0,0.000843]
[1731290748052,0.13517754,81144.0,81143.0,0.000843]
[1731290750276,0.00923533,81144.0,81143.0,0.099434]
[1731290750692,1.505,81144.0,81143.0,0.099434]
[1731290751118,1.50969181,81144.0,81143.0,0.099434]
[1731290751521,0.00969181,81144.0,81143.0,0.099434]
[1731290751772,0.005,81144.0,81143.0,0.099434]
[1731290752793,0.005,81144.0,81143.0,0.17318164]
[1731290753214,1.505,81144.0,81143.0,0.17318186]
[1731290753424,1.5,81144.0,81143.0,0.13710044]
[1731290753629,1.5046745,81144.0,81143.0,0.13710044]
[1731290753834,1.5046745,81144.0,81143.0,0.19122224]
[1731290754040,0.0046745,81144.0,81143.0,0.13710044]
[1731290754450,0.005,81152.0,81143.0,0.13710044]
[1731290754451,0.005,81152.0,81151.0,0.098581]
[1731290754661,0.13094221,81152.0,81151.0,0.03766644]
[1731290754869,0.005,81148.0,81147.0,0.098585]
[1731290755087,0.005,81144.0,81143.0,0.03692]
[1731290755294,0.13094221,81144.0,81143.0,0.03855404]
[1731290755508,0.13094221,81144.0,81143.0,0.000843]
[1731290755509,0.1356223,81144.0,81143.0,0.000843]
[1731290756329,0.3174123,81144.0,81143.0,0.000843]
[1731290757180,0.3174123,81144.0,81127.0,0.036948]
[1731290757181,0.005,81128.0,81127.0,0.000842]
[1731290757405,0.13094221,81128.0,81127.0,0.099452]
[1731290757810,0.13559864,81128.0,81127.0,0.099452]
[1731290758022,0.00965643,81128.0,81127.0,0.099452]
[1731290758429,0.13094221,81128.0,81127.0,0.099452]
[1731290758647,0.13094221,81128.0,81127.0,0.000842]
[1731290758855,0.2391814,81128.0,81127.0,0.000842]
[1731290759287,0.2621814,81128.0,81127.0,0.000842]
[1731290759503,0.1355724,81128.0,81127.0,0.000842]
[1731290759700,0.1405724,81128.0,81127.0,0.000842]
[1731290759915,0.2391814,81128.0,81127.0,0.000842]
[1731290760321,0.1405724,81128.0,81127.0,0.000842]
[1731290760758,1.7391814,81128.0,81127.0,0.000842]
[1731290760982,1.75528364,81128.0,81127.0,0.000842]
[1731290761178,1.7391814,81128.0,81127.0,0.000842]
[1731290761632,1.6405724,81128.0,81127.0,0.000842]
[1731290761852,1.6355724,81128.0,81127.0,0.000842]
[1731290762496,1.6355724,81128.0,81127.0,0.099452]
[1731290762945,1.50963019,81128.0,81127.0,0.099452]
[1731290763169,0.00963019,81128.0,81127.0,0.099452]
[1731290763603,0.005,81128.0,81127.0,0.099452]
[1731290765167,1.5,81135.0,81134.0,0.098602]
[1731290765384,1.5046173,81135.0,81134.0,0.098602]
[1731290765624,0.0046173,81135.0,81134.0,0.098602]
[1731290765813,0.18461311,81149.0,81134.0,0.098602]
[1731290765814,0.18961311,81149.0,81148.0,0.098585]
[1731290766032,0.31055532,81149.0,81148.0,0.098585]
[1731290766273,0.00464363,81149.0,81148.0,0.098585]
[1731290766492,0.00464363,81149.0,81148.0,0.28324933]
[1731290766707,0.001686,81152.0,81151.0,0.098581]
[1731290767149,0.00633106,81152.0,81151.0,0.098581]
[1731290767362,0.001686,81152.0,81151.0,0.23629072]
[1731290767569,0.00634206,81152.0,81151.0,0.23629072]
[1731290767790,0.001686,81152.0,81151.0,0.23629072]
[1731290768050,0.001686,81152.0,81151.0,0.24075497]
[1731290768495,0.001686,81152.0,81151.0,0.36423293]
[1731290768732,1e-06,81152.0,81151.0,0.47287625]
[1731290768917,0.18461311,81176.0,81166.0,0.098563]
[1731290769118,0.18461311,81176.0,81166.0,0.37195221]
[1731290769340,0.18461311,81176.0,81166.0,0.28147272]
[1731290769546,0.18461311,81176.0,81175.0,0.098552]
[1731290770006,0.005,81184.0,81183.0,0.098542]
[1731290770789,1.505,81184.0,81183.0,0.098542]
[1731290770964,1.63094221,81184.0,81183.0,0.098542]
[1731290771861,1.505,81184.0,81183.0,0.098542]
[1731290772052,1.5,81184.0,81183.0,0.098542]
[1731290772259,1.505,81184.0,81183.0,0.098542]
[1731290773126,1.5,81184.0,81183.0,0.098542]
[1731290773303,0.001686,81187.0,81181.0,0.197089]
[1731290773536,0.001686,81187.0,81186.0,0.098539]
[1731290775111,0.001686,81187.0,81186.0,0.198539]
[1731290776162,0.001686,81187.0,81186.0,0.098539]
[1731290777652,0.001686,81187.0,81186.0,0.32694425]
[1731290777847,0.001686,81187.0,81186.0,0.32448121]
[1731290778760,0.001686,81187.0,81186.0,0.32511521]
[1731290779756,1.5,81216.0,81186.0,0.32448121]
[1731290779954,1.5,81216.0,81206.0,0.098514]
[1731290779955,1.505,81216.0,81206.0,0.098514]
[1731290780136,1.5,81216.0,81206.0,0.098514]
[1731290781279,1e-06,81207.0,81206.0,0.33691871]
[1731290781491,1e-06,81207.0,81206.0,0.41585621]
[1731290782255,1e-06,81207.0,81206.0,0.43885621]
[1731290782634,1e-06,81207.0,81206.0,0.44085621]
[1731290782773,1e-06,81207.0,81206.0,0.45103804]
[1731290783245,1e-06,81207.0,81206.0,0.48699511]
[1731290783404,1e-06,81207.0,81206.0,0.52068318]
[1731290783607,1e-06,81207.0,81206.0,0.48472611]
[1731290783813,0.06149311,81222.0,81221.0,0.258996]
[1731290784010,0.06149311,81222.0,81221.0,0.59462508]
[1731290784192,0.000698,81234.0,81233.0,0.098482]
[1731290784398,0.005,81261.0,81233.0,0.098482]
[1731290784399,0.18461311,81275.0,81246.0,0.01]
[1731290784607,0.18461311,81275.0,81255.0,0.098455]
[1731290784608,0.18531111,81266.0,81255.0,0.098455]
[1731290784805,0.18531111,81266.0,81255.0,0.23405974]
[1731290785169,0.18531111,81266.0,81255.0,0.23812363]
[1731290785550,0.000698,81266.0,81255.0,0.24841866]
[1731290785754,0.000698,81266.0,81255.0,0.38436087]
[1731290785900,0.000698,81266.0,81255.0,0.33469224]
[1731290786319,0.000698,81266.0,81255.0,0.37436087]
[1731290786478,0.000698,81266.0,81255.0,0.34469224]
[1731290786677,0.000698,81266.0,81255.0,0.34669224]
[1731290786903,0.000698,81266.0,81255.0,0.34169224]
[1731290787116,0.000698,81266.0,81255.0,0.38436087]
[1731290788115,0.000698,81266.0,81255.0,0.37436087]
[1731290788354,0.000698,81266.0,81255.0,0.33469224]
[1731290789119,0.000698,81266.0,81263.0,0.002]
[1731290789295,1e-06,81269.0,81268.0,0.01]
[1731290789517,1e-06,81269.0,81268.0,0.36184143]
[1731290789744,1e-06,81269.0,81268.0,0.44474984]
[1731290789942,9e-07,81269.0,81268.0,0.44474984]
[1731290790163,1.5,81289.0,81288.0,0.098415]
[1731290790498,0.005,81295.0,81289.0,0.098414]
[1731290790700,0.0805,81308.0,81296.0,0.098405]
[1731290790701,0.005,81297.0,81296.0,0.098405]
[1731290790938,0.005,81295.0,81294.0,0.098408]
[1731290791799,0.005,81276.0,81275.0,0.09843]
[1731290791929,0.0502,81292.0,81248.0,0.01]
[1731290791930,0.005,81274.0,81248.0,0.01]
[1731290792158,1.5,81274.0,81273.0,0.28304611]
[1731290792378,1.5,81274.0,81273.0,0.30027881]
[1731290792567,1.5,81274.0,81273.0,0.098433]
[1731290793458,1.5065697,81274.0,81273.0,0.098433]
[1731290794095,1.5082557,81274.0,81273.0,0.098433]
[1731290794700,1.5082557,81274.0,81241.0,0.05757884]
[1731290794701,1.87792696,81274.0,81266.0,0.098441]
[1731290794944,0.005,81260.0,81259.0,0.28306311]
[1731290795296,0.005,81266.0,81265.0,0.098443]
[1731290795977,1.505,81266.0,81265.0,0.098443]
[1731290796117,1.505,81266.0,81250.0,0.196922]
[1731290796118,0.005,81259.0,81250.0,0.196922]
[1731290796327,0.005,81258.0,81257.0,0.098453]
[1731290797281,0.12594221,81265.0,81250.0,0.196923]
[1731290797282,0.005,81254.0,81253.0,0.098457]
[1731290798133,0.005,81254.0,81253.0,0.295371]
[1731290798359,0.005,81254.0,81253.0,0.098457]
[1731290798537,0.005,81252.0,81245.0,0.1]
[1731290798797,0.005,81250.0,81249.0,0.098461]
[1731290799667,0.005,81250.0,81230.0,0.20751013]
[1731290799668,0.13649567,81251.0,81232.0,0.18461311]
[1731290799980,0.13649567,81251.0,81241.0,0.18461311]
[1731290800108,0.13649567,81251.0,81244.0,0.098468]
[1731290800315,0.1248306,81251.0,81244.0,0.196937]
[1731290800489,0.1248306,81251.0,81250.0,0.098461]
[1731290800666,1.6248306,81251.0,81250.0,0.098461]
[1731290800874,1.6298306,81251.0,81247.0,0.098463]
[1731290801253,1.6298306,81251.0,81243.0,0.29541]
[1731290801458,0.098468,81245.0,81236.0,0.098477]
[1731290801670,0.12594221,81244.0,81241.0,0.18461311]
[1731290801872,0.12594221,81244.0,81243.0,0.09847]
[1731290802255,1.505,81251.0,81242.0,0.28308411]
[1731290802256,5.427e-05,81243.0,81242.0,0.28308411]
[1731290802447,1.5,81251.0,81232.0,0.38157911]
[1731290802448,1.5,81251.0,81250.0,0.098461]
[1731290803999,1.5,81251.0,81227.0,0.1]
[1731290804000,0.005,81245.0,81211.0,0.005]
[1731290804277,0.005,81245.0,81200.0,0.002]
[1731290804278,0.005,81241.0,81219.0,0.196996]
[1731290804511,0.0486,81233.0,81219.0,0.196996]
[1731290804726,0.12594221,81232.0,81219.0,0.196996]
[1731290804929,0.12594221,81232.0,81223.0,0.28310611]
[1731290804930,1.62594221,81232.0,81223.0,0.28310611]
[1731290805125,0.0985262,81231.0,81223.0,0.28310611]
[1731290805282,0.12594221,81230.0,81224.0,0.196986]
[1731290805489,0.12594221,81230.0,81223.0,0.18461311]
[1731290805692,0.005,81238.0,81225.0,0.196983]
[1731290805895,0.005,81238.0,81212.0,0.18461311]
[1731290805896,0.12594221,81237.0,81212.0,0.18461311]
[1731290806128,0.12594221,81237.0,81221.0,0.18461311]
[1731290806296,1.5,81229.0,81228.0,0.098488]
[1731290808759,1.5,81229.0,81214.0,0.1]
[1731290808967,1.5,81229.0,81228.0,0.098488]
[1731290809984,1.5,81229.0,81220.0,0.196995]
[1731290810190,1.5,81229.0,81221.0,0.00902356]
[1731290810191,0.098491,81226.0,81221.0,0.00902356]
[1731290810503,0.12594221,81228.0,81215.0,0.197007]
[1731290810504,0.12594221,81228.0,81222.0,0.18461311]
[1731290810714,1.5,81229.0,81228.0,0.098488]
[1731290810955,1.5,81229.0,81225.0,0.196983]
[1731290811157,1.5,81229.0,81227.0,0.098488]
[1731290811430,1.5,81229.0,81206.0,0.197029]
[1731290811431,1.5,81229.0,81228.0,0.098488]
[1731290812258,0.0817,81236.0,81235.0,0.098479]
[1731290812629,0.20764221,81236.0,81232.0,0.098482]
[1731290812859,1.63225718,81235.0,81221.0,0.18461311]
[1731290813105,1.63225718,81235.0,81232.0,0.098482]
[1731290813407,1.63225718,81235.0,81226.0,0.09849]
[1731290813658,1.63225718,81235.0,81223.0,0.196988]
[1731290813836,0.098481,81234.0,81223.0,0.196988]
[1731290814073,0.0817,81236.0,81224.0,0.03761921]
[1731290814074,0.13225454,81233.0,81224.0,0.03761921]
[1731290814304,0.23073654,81233.0,81223.0,0.196988]
[1731290814529,0.098486,81230.0,81221.0,0.18461311]
[1731290814726,0.13225454,81233.0,81223.0,0.196988]
[1731290814985,0.00630747,81229.0,81228.0,0.098487]
[1731290815193,0.12594221,81233.0,81229.0,0.098486]
[1731290815801,1.50631112,81232.0,81229.0,0.098486]
[1731290816028,0.12594221,81231.0,81229.0,0.098486]
[1731290816184,0.12594221,81231.0,81230.0,0.098485]
[1731290816768,0.0817,81236.0,81235.0,0.098479]
[1731290817640,0.0817,81236.0,81229.0,0.196972]
[1731290818013,0.0817,81236.0,81231.0,0.098484]
[1731290818222,0.0817,81236.0,81231.0,0.098483]